[Event "EYCC Open-U12 2019"]
[Site "Bratislava"]
[Date "2019.08.09"]
[Round "8.10"]
[White "Kanov, Nikola"]
[Black "Makkar, Rajat"]
[Result "0-1"]
[ECO "C54"]
[WhiteElo "1908"]
[BlackElo "2064"]
[Annotator "NA"]
[PlyCount "172"]
[EventDate "2019.08.02"]
[EventType "swiss"]
[EventCountry "SVK"]
[SourceTitle "playchess.com"]
[Source "ChessBase"]
[SourceQuality "1"]
[TimeControl "40/5400+30:1800+30"]

1. e4 {[%emt 0:00:00]} e5 {[%emt 0:00:00]} 2. Nf3 {[%emt 0:00:00]} Nc6 {[%emt 0:00:00]} 3. Bc4 {[%emt 0:00:00]} Bc5 {[%emt 0:00:14]} 4. c3 {[%emt 0:00:00]} Nf6 {[%emt 0:00:27]} 5. d3 {[%emt 0:00:07]} h6 {[%emt 0:00:12]} 6. Nbd2 {[%emt 0:00:40]} d6 {[%emt 0:00:56]} 7. Bb3 {[%emt 0:00:29]} O-O {[%emt 0:02:18]} 8. O-O {[%emt 0:00:49]} a5 {[%emt 0:00:46]} 9. h3 {[%emt 0:00:55]} Be6 {[%emt 0:00:41]} 10. Re1 {[%emt 0:00:38]} Bxb3 {[%emt 0:03:37]} 11. axb3 {[%emt 0:01:25]} d5 {[%emt 0:07:57]} 12. Qe2 {[%emt 0:08:20]} Re8 {[%emt 0:03:11]} 13. Nf1 {[%emt 0:02:31]} Qd7 {[%emt 0:08:38]} 14. Nh4 {[%emt 0:08:32]} d4 {[%emt 0:07:08]} 15. Qf3 {[%emt 0:05:57]} dxc3 {[%emt 0:03:58]} 16. bxc3 {[%emt 0:00:32]} Rad8 {[%emt 0:03:33]} 17. Rd1 {[%emt 0:09:29]} Qe6 {[%emt 0:01:57]} 18. Nf5 {[%emt 0:05:51]} Ne7 {[%emt 0:07:40]} 19. Rxa5 {[%emt 0:16:33]} b6 {[%emt 0:01:18]} 20. Nxe7+ {[%emt 0:01:28]} Rxe7 {[%emt 0:02:34]} 21. Ra1 {[%emt 0:00:50]} Qxb3 {[%emt 0:01:25]} 22. Bxh6 {[%emt 0:02:28]} Qxc3 {[%emt 0:02:12]} 23. Ng3 {[%emt 0:05:53]} Red7 {[%emt 0:03:57]} 24. Rac1 {[%emt 0:02:36]} Qb3 {[%emt 0:02:44]} 25. Qf5 {[%emt 0:12:33]} Rxd3 {[%emt 0:05:18]} 26. Rxd3 {[%emt 0:00:10]} Rxd3 {[%emt 0:00:36]} 27. Bxg7 {[%emt 0:03:28]} Kxg7 {[%emt 0:01:36]} 28. Qg5+ {[%emt 0:00:05]} Kf8 {[%emt 0:00:20]} 29. Qxf6 {[%emt 0:00:17]} Rxg3 {[%emt 0:02:46]} 30. Rxc5 {[%emt 0:00:16]} Qb1+ {[%emt 0:01:19]} 31. Kh2 {[%emt 0:00:21]} Rxg2+ {[%emt 0:02:29]} 32. Kxg2 {[%emt 0:00:05]} Qxe4+ {[%emt 0:00:09]} 33. f3 {[%emt 0:00:26]} Qe2+ {[%emt 0:00:27]} 34. Kg3 {[%emt 0:00:44]} Qe1+ {[%emt 0:00:18]} 35. Kg4 {[%emt 0:02:20]} Qg1+ {[%emt 0:01:18]} 36. Kh4 {[%emt 0:05:26]} bxc5 {[%emt 0:00:36]} 37. Qh8+ {[%emt 0:03:21]} Qg8 {[%emt 0:00:52]} 38. Qxe5 {[%emt 0:00:29]} Qh7+ {[%emt 0:00:17]} 39. Kg5 {[%emt 0:00:10]} Qg6+ {[%emt 0:00:33]} 40. Kf4 {[%emt 0:00:00]} Qd6 {[%emt 0:00:00]} 41. Ke4 {[%emt 0:03:12]} f6 {[%emt 0:04:34]} 42. Qa1 {[%emt 0:08:07]} Ke7 {[%emt 0:02:41]} 43. h4 {[%emt 0:01:14]} Qe6+ {[%emt 0:01:27]} 44. Kf4 {[%emt 0:00:24]} c4 {[%emt 0:00:49]} 45. Qc1 {[%emt 0:06:06]} Qe5+ {[%emt 0:01:50]} 46. Kg4 {[%emt 0:00:02]} Qd4+ {[%emt 0:00:19]} 47. Kh3 {[%emt 0:01:18]} Qd3 {[%emt 0:00:47]} 48. Qf4 {[%emt 0:01:28]} Qf1+ {[%emt 0:01:02]} 49. Kh2 {[%emt 0:01:10]} Qe2+ {[%emt 0:00:32]} 50. Kh1 {[%emt 0:00:29]} Qf1+ {[%emt 0:00:59]} 51. Kh2 {[%emt 0:00:07]} Qf2+ {[%emt 0:00:07]} 52. Kh1 {[%emt 0:00:26]} Qc5 {[%emt 0:00:24]} 53. Qe4+ {[%emt 0:00:40]} Kd8 {[%emt 0:00:45]} 54. Qe6 {[%emt 0:01:00]} Qd4 {[%emt 0:00:42]} 55. Qg8+ {[%emt 0:00:18]} Ke7 {[%emt 0:00:27]} 56. Qg7+ {[%emt 0:00:23]} Kd6 {[%emt 0:00:23]} 57. Qf8+ {[%emt 0:00:18]} Ke5 {[%emt 0:01:10]} 58. Kg2 {[%emt 0:00:55]} c5 {[%emt 0:00:51]} 59. Qb8+ {[%emt 0:01:45]} Kf5 {[%emt 0:00:27]} 60. Qc8+ {[%emt 0:00:13]} Kf4 {[%emt 0:00:33]} 61. Qg4+ {[%emt 0:02:17]} Ke3 {[%emt 0:00:26]} 62. Qe6+ {[%emt 0:01:16]} Kd2 {[%emt 0:00:20]} 63. Kf1 {[%emt 0:02:40]} c3 {[%emt 0:02:36]} 64. Qe1+ {[%emt 0:00:35]} Kc2 {[%emt 0:00:11]} 65. h5 {[%emt 0:01:46]} Qd3+ {[%emt 0:00:56]} 66. Qe2+ {[%emt 0:00:09]} Qxe2+ 67. Kxe2 {[%emt 0:00:01]} Kb1 {[%emt 0:03:56]} 68. h6 {[%emt 0:00:04]} c2 {[%emt 0:00:20]} 69. h7 {[%emt 0:00:03]} c1=Q {[%emt 0:00:07]} 70. h8=Q {[%emt 0:00:03]} Qb2+ {[%emt 0:00:11]} 71. Kd3 {[%emt 0:02:06]} Qd4+ {[%emt 0:00:14]} 72. Ke2 {[%emt 0:00:04]} c4 {[%emt 0:00:58]} 73. Qh7+ {[%emt 0:00:16]} Kc1 {[%emt 0:00:27]} 74. Qf7 {[%emt 0:05:49]} c3 {[%emt 0:02:00]} 75. Qf8 {[%emt 0:01:51]} Qd2+ {[%emt 0:02:40]} 76. Kf1 {[%emt 0:00:00]} c2 {[%emt 0:01:58]} 77. Qa3+ {[%emt 0:00:19]} Kd1 {[%emt 0:00:10]} 78. Qb3 {[%emt 0:00:09]} Qd4 {[%emt 0:01:25]} 79. f4 {[%emt 0:01:03]} Qxf4+ {[%emt 0:00:18]} 80. Kg2 {[%emt 0:00:12]} Qe4+ {[%emt 0:00:31]} 81. Kf2 {[%emt 0:00:34]} Kd2 {[%emt 0:00:54]} 82. Qa2 {[%emt 0:00:26]} Qd4+ {[%emt 0:00:39]} 83. Kf3 {[%emt 0:00:16]} f5 {[%emt 0:00:29]} 84. Kg2 {[%emt 0:00:17]} Kd1 {[%emt 0:02:14]} 85. Qb3 {[%emt 0:00:07]} Qe4+ {[%emt 0:00:08]} 86. Kh2 {[%emt 0:00:32]} f4 {[%emt 0:00:22]} 0-1

[Event "EYCC Open-U12 2019"]
[Site "Bratislava"]
[Date "2019.08.09"]
[Round "8.11"]
[White "Bat, Bilguun"]
[Black "Shinkarov, Artem"]
[Result "1-0"]
[ECO "A06"]
[WhiteElo "2093"]
[BlackElo "1798"]
[Annotator "NA"]
[PlyCount "133"]
[EventDate "2019.08.02"]
[EventType "swiss"]
[EventCountry "SVK"]
[SourceTitle "playchess.com"]
[Source "ChessBase"]
[SourceQuality "1"]
[TimeControl "40/5400+30:1800+30"]

1. Nf3 {[%emt 0:00:00]} d5 {[%emt 0:00:00]} 2. e3 {[%emt 0:00:00]} Nf6 {[%emt 0:00:00]} 3. c4 {[%emt 0:00:05]} c6 {[%emt 0:00:47]} 4. Nc3 {[%emt 0:01:39]} g6 {[%emt 0:02:56]} 5. b3 {[%emt 0:02:09]} Bg7 {[%emt 0:00:08]} 6. Bb2 {[%emt 0:00:26]} O-O {[%emt 0:01:39]} 7. d4 {[%emt 0:01:28]} Nbd7 {[%emt 0:04:48]} 8. Be2 {[%emt 0:00:56]} b6 {[%emt 0:05:41]} 9. O-O {[%emt 0:02:08]} Bb7 {[%emt 0:00:35]} 10. Rc1 {[%emt 0:08:10]} c5 {[%emt 0:20:05]} 11. dxc5 {[%emt 0:16:54]} dxc4 {[%emt 0:01:46]} 12. b4 {[%emt 0:04:51]} a5 {[%emt 0:09:55]} 13. b5 {[%emt 0:06:46]} Nxc5 {[%emt 0:01:37]} 14. Bxc4 {[%emt 0:00:14]} Nfe4 {[%emt 0:12:29]} 15. Nd4 {[%emt 0:07:22]} Nxc3 {[%emt 0:07:00]} 16. Bxc3 {[%emt 0:00:23]} Ne4 {[%emt 0:05:29]} 17. Ba1 {[%emt 0:05:04]} Rc8 {[%emt 0:06:39]} 18. Qe2 {[%emt 0:03:50]} Rc5 {[%emt 0:03:33]} 19. Rfd1 {[%emt 0:09:38]} Qc8 {[%emt 0:04:06]} 20. Nb3 {[%emt 0:01:33]} Bxa1 {[%emt 0:02:06]} 21. Nxc5 {[%emt 0:01:56]} Nc3 {[%emt 0:00:32]} 22. Rxc3 {[%emt 0:03:19]} Bxc3 {[%emt 0:00:09]} 23. Nd7 {[%emt 0:02:21]} Rd8 {[%emt 0:00:32]} 24. Qd3 {[%emt 0:01:11]} e6 {[%emt 0:03:25]} 25. Qxc3 {[%emt 0:14:58]} Rxd7 {[%emt 0:00:08]} 26. Rxd7 {[%emt 0:00:15]} Qxd7 {[%emt 0:00:06]} 27. f3 {[%emt 0:00:13]} Qd6 {[%emt 0:01:05]} 28. Bb3 {[%emt 0:00:31]} h5 {[%emt 0:01:25]} 29. Bc2 {[%emt 0:01:42]} Qd5 {[%emt 0:03:34]} 30. a4 {[%emt 0:00:32]} Qd6 {[%emt 0:00:12]} 31. e4 {[%emt 0:01:16]} Kf8 {[%emt 0:01:43]} 32. e5 {[%emt 0:00:20]} Qd7 {[%emt 0:00:48]} 33. Kf2 {[%emt 0:00:20]} Ke8 {[%emt 0:00:44]} 34. Ke3 {[%emt 0:00:16]} Qe7 {[%emt 0:00:37]} 35. Qd4 {[%emt 0:01:15]} Qc7 {[%emt 0:00:24]} 36. Bd3 {[%emt 0:01:26]} Qc1+ {[%emt 0:00:41]} 37. Ke2 {[%emt 0:00:16]} Qc7 {[%emt 0:00:24]} 38. Kf2 {[%emt 0:01:22]} Kf8 {[%emt 0:00:40]} 39. h4 {[%emt 0:01:04]} Ke7 {[%emt 0:00:27]} 40. Ke3 {[%emt 0:00:00]} Qc1+ {[%emt 0:00:00]} 41. Ke2 {[%emt 0:02:01]} Qc7 {[%emt 0:03:00]} 42. Kf2 {[%emt 0:07:39]} Ke8 {[%emt 0:03:59]} 43. Ke2 {[%emt 0:05:23]} Bd5 {[%emt 0:03:38]} 44. Kd2 {[%emt 0:03:52]} Ke7 {[%emt 0:06:48]} 45. Ke3 {[%emt 0:01:00]} Qc1+ {[%emt 0:00:25]} 46. Ke2 {[%emt 0:00:03]} Qc7 {[%emt 0:00:13]} 47. Qe3 {[%emt 0:02:03]} Ke8 {[%emt 0:08:59]} 48. Kd2 {[%emt 0:00:38]} Bb7 {[%emt 0:04:50]} 49. g4 {[%emt 0:02:37]} Qd8 {[%emt 0:00:29]} 50. gxh5 {[%emt 0:02:02]} gxh5 {[%emt 0:00:14]} 51. Qf4 {[%emt 0:01:59]} Qd5 {[%emt 0:00:20]} 52. Ke2 {[%emt 0:01:01]} Qa2+ {[%emt 0:00:37]} 53. Ke3 {[%emt 0:00:10]} Qa1 {[%emt 0:01:10]} 54. Kf2 {[%emt 0:01:21]} Qc3 {[%emt 0:01:21]} 55. Be2 {[%emt 0:00:47]} Bd5 {[%emt 0:00:59]} 56. Qg5 {[%emt 0:04:50]} Qd4+ {[%emt 0:00:42]} 57. Kf1 {[%emt 0:00:37]} Qxa4 {[%emt 0:00:37]} 58. Qe3 {[%emt 0:01:14]} Qxh4 {[%emt 0:00:33]} 59. Qxb6 {[%emt 0:00:35]} Qd8 {[%emt 0:00:21]} 60. Qc5 {[%emt 0:01:13]} Qa8 {[%emt 0:00:44]} 61. b6 {[%emt 0:00:23]} Bc6 {[%emt 0:01:01]} 62. Bb5 {[%emt 0:00:36]} Bd7 {[%emt 0:00:31]} 63. Bxd7+ {[%emt 0:00:33]} Kxd7 {[%emt 0:00:07]} 64. Qc7+ {[%emt 0:00:13]} Ke8 {[%emt 0:00:19]} 65. b7 {[%emt 0:00:27]} Qa6+ {[%emt 0:00:17]} 66. Kf2 {[%emt 0:00:11]} Qa7+ {[%emt 0:00:22]} 67. Kg2 {[%emt 0:00:09]} 1-0

[Event "EYCC Open-U12 2019"]
[Site "Bratislava"]
[Date "2019.08.09"]
[Round "8.12"]
[White "Suleymanov, Ali"]
[Black "Habans Aguerrea, Javier"]
[Result "1/2-1/2"]
[ECO "A43"]
[WhiteElo "1733"]
[BlackElo "2083"]
[Annotator "NA"]
[PlyCount "107"]
[EventDate "2019.08.02"]
[EventType "swiss"]
[EventCountry "SVK"]
[SourceTitle "playchess.com"]
[Source "ChessBase"]
[SourceQuality "1"]
[TimeControl "40/5400+30:1800+30"]

1. d4 {[%emt 0:00:00]} c5 {[%emt 0:00:00]} 2. d5 {[%emt 0:00:00]} Nf6 {[%emt 0:00:00]} 3. Nc3 {[%emt 0:00:12]} g6 {[%emt 0:00:00]} 4. e4 {[%emt 0:00:34]} d6 {[%emt 0:00:01]} 5. Nf3 {[%emt 0:00:59]} Bg7 {[%emt 0:00:05]} 6. Be2 {[%emt 0:01:52]} O-O {[%emt 0:00:08]} 7. O-O {[%emt 0:00:55]} Na6 {[%emt 0:00:05]} 8. Bf4 {[%emt 0:02:47]} Nc7 {[%emt 0:00:06]} 9. a4 {[%emt 0:01:28]} b6 {[%emt 0:00:13]} 10. h3 {[%emt 0:06:55]} a6 {[%emt 0:00:34]} 11. Qd2 {[%emt 0:06:34]} Bb7 {[%emt 0:00:10]} 12. Rfe1 {[%emt 0:03:07]} Qd7 {[%emt 0:00:09]} 13. Bf1 {[%emt 0:05:13]} b5 {[%emt 0:02:28]} 14. a5 {[%emt 0:03:07]} Rad8 {[%emt 0:03:16]} 15. Bh6 {[%emt 0:07:59]} Rfe8 {[%emt 0:01:33]} 16. Bxg7 {[%emt 0:04:31]} Kxg7 {[%emt 0:00:23]} 17. b4 {[%emt 0:08:34]} c4 {[%emt 0:06:57]} 18. Nd4 {[%emt 0:05:43]} e6 {[%emt 0:02:05]} 19. dxe6 {[%emt 0:01:35]} fxe6 {[%emt 0:01:12]} 20. Qg5 {[%emt 0:04:07]} Rf8 {[%emt 0:06:39]} 21. Rad1 {[%emt 0:06:41]} h6 {[%emt 0:08:01]} 22. Qe3 {[%emt 0:01:47]} e5 {[%emt 0:01:38]} 23. Nf3 {[%emt 0:01:33]} Qc6 24. Rd2 {[%emt 0:05:23]} Rde8 {[%emt 0:10:24]} 25. Red1 {[%emt 0:01:58]} Re6 {[%emt 0:01:55]} 26. Nd5 {[%emt 0:01:46]} Qd7 {[%emt 0:02:22]} 27. g3 {[%emt 0:02:10]} Ncxd5 {[%emt 0:04:46]} 28. exd5 {[%emt 0:00:21]} Re7 {[%emt 0:01:24]} 29. Bg2 {[%emt 0:01:13]} e4 {[%emt 0:08:20]} 30. Nh2 {[%emt 0:02:27]} Re5 {[%emt 0:02:17]} 31. Qc3 {[%emt 0:01:39]} Kh7 {[%emt 0:00:57]} 32. Nf1 {[%emt 0:02:19]} Nxd5 {[%emt 0:01:13]} 33. Qd4 {[%emt 0:00:46]} Qe7 {[%emt 0:04:14]} 34. Re2 {[%emt 0:02:47]} Re8 {[%emt 0:02:47]} 35. Ne3 {[%emt 0:02:04]} Nxe3 36. Rxe3 {[%emt 0:00:07]} Rd5 {[%emt 0:07:23]} 37. Qa1 {[%emt 0:00:34]} Rxd1+ {[%emt 0:00:41]} 38. Qxd1 {[%emt 0:00:05]} d5 {[%emt 0:00:08]} 39. c3 {[%emt 0:00:09]} Qe5 {[%emt 0:05:06]} 40. Qd4 {[%emt 0:00:00]} Qxd4 {[%emt 0:00:00]} 41. cxd4 {[%emt 0:02:42]} Kg7 {[%emt 0:03:37]} 42. Kf1 {[%emt 0:01:23]} Kf7 {[%emt 0:00:54]} 43. Ke2 {[%emt 0:01:07]} g5 {[%emt 0:02:29]} 44. Ke1 {[%emt 0:01:58]} Bc8 {[%emt 0:00:10]} 45. Ke2 {[%emt 0:00:37]} Bf5 {[%emt 0:02:09]} 46. Ke1 {[%emt 0:00:42]} Re6 {[%emt 0:00:31]} 47. Ke2 {[%emt 0:00:33]} Bg6 {[%emt 0:00:28]} 48. Ke1 {[%emt 0:10:14]} Bh5 {[%emt 0:00:35]} 49. Kd2 {[%emt 0:07:43]} Rf6 {[%emt 0:00:45]} 50. Ke1 {[%emt 0:00:08]} Ke6 {[%emt 0:07:48]} 51. Bh1 {[%emt 0:01:22]} Bf3 {[%emt 0:06:01]} 52. Bxf3 {[%emt 0:00:06]} Rxf3 {[%emt 0:00:02]} 53. Rxf3 {[%emt 0:00:12]} exf3 {[%emt 0:00:06]} 54. g4 {[%emt 0:00:04] Ke5} 1/2-1/2

[Event "EYCC Open-U12 2019"]
[Site "Bratislava"]
[Date "2019.08.09"]
[Round "8.13"]
[White "Eliseev, Sergey"]
[Black "Fiszer, Bartosz"]
[Result "0-1"]
[ECO "A48"]
[WhiteElo "2053"]
[BlackElo "2124"]
[Annotator "NA"]
[PlyCount "60"]
[EventDate "2019.08.02"]
[EventType "swiss"]
[EventCountry "SVK"]
[SourceTitle "playchess.com"]
[Source "ChessBase"]
[SourceQuality "1"]
[TimeControl "40/5400+30:1800+30"]

1. d4 {[%emt 0:00:00]} Nf6 {[%emt 0:00:00]} 2. Nf3 {[%emt 0:00:00]} g6 {[%emt 0:00:00]} 3. Bg5 {[%emt 0:00:07]} Bg7 {[%emt 0:00:00]} 4. Nbd2 {[%emt 0:00:12]} O-O {[%emt 0:00:00]} 5. c3 {[%emt 0:00:15]} d5 {[%emt 0:00:00]} 6. e3 {[%emt 0:00:22]} Nbd7 {[%emt 0:00:16]} 7. Be2 {[%emt 0:02:23]} Re8 {[%emt 0:00:09]} 8. O-O {[%emt 0:02:21]} e5 {[%emt 0:00:10]} 9. dxe5 {[%emt 0:04:11]} Nxe5 {[%emt 0:00:03]} 10. c4 {[%emt 0:13:05]} c6 {[%emt 0:01:22]} 11. Qb3 {[%emt 0:12:03]} Nxf3+ {[%emt 0:16:34]} 12. Nxf3 {[%emt 0:06:48]} Qb6 {[%emt 0:04:54]} 13. Rfd1 {[%emt 0:22:52]} dxc4 14. Bxc4 {[%emt 0:07:36]} Qxb3 {[%emt 0:12:43]} 15. Bxb3 {[%emt 0:00:14]} Ne4 {[%emt 0:00:18]} 16. Bc2 {[%emt 0:17:50]} Bxb2 {[%emt 0:03:41]} 17. Rab1 {[%emt 0:01:16]} Nxg5 {[%emt 0:00:23]} 18. Nxg5 {[%emt 0:00:31]} Bf6 {[%emt 0:01:16]} 19. Ne4 {[%emt 0:00:53]} Kg7 {[%emt 0:05:56]} 20. Nd6 {[%emt 0:01:49]} Re7 {[%emt 0:00:18]} 21. a4 {[%emt 0:02:52]} Be5 {[%emt 0:02:42]} 22. a5 {[%emt 0:01:50]} Rb8 {[%emt 0:09:11]} 23. Ba4 {[%emt 0:01:04]} Ra8 {[%emt 0:15:26]} 24. h3 {[%emt 0:00:40]} Kf8 {[%emt 0:02:51]} 25. Nc4 {[%emt 0:00:30]} Bc7 {[%emt 0:00:27]} 26. Rd4 {[%emt 0:00:26]} Rb8 {[%emt 0:04:41]} 27. Bxc6 {[%emt 0:00:35]} bxc6 {[%emt 0:00:08]} 28. Rd8+ {[%emt 0:00:05]} Re8 {[%emt 0:00:26]} 29. Rxb8 {[%emt 0:00:29]} Rxd8 {[%emt 0:00:09]} 30. Ra8 {[%emt 0:00:17]} Rd1# {[%emt 0:00:07]} 0-1

[Event "EYCC Open-U12 2019"]
[Site "Bratislava"]
[Date "2019.08.09"]
[Round "8.14"]
[White "Pingin, Artem"]
[Black "Chyndygyr, Tamerlan"]
[Result "1/2-1/2"]
[ECO "D31"]
[WhiteElo "2155"]
[BlackElo "2018"]
[Annotator "NA"]
[PlyCount "53"]
[EventDate "2019.08.02"]
[EventType "swiss"]
[EventCountry "SVK"]
[SourceTitle "playchess.com"]
[Source "ChessBase"]
[SourceQuality "1"]
[TimeControl "40/5400+30:1800+30"]

1. c4 {[%emt 0:00:00]} e6 {[%emt 0:00:08]} 2. Nc3 {[%emt 0:00:17]} d5 {[%emt 0:00:16]} 3. d4 {[%emt 0:01:04]} Be7 {[%emt 0:00:30]} 4. Nf3 {[%emt 0:00:46]} Nf6 {[%emt 0:00:06]} 5. g3 {[%emt 0:02:01]} O-O {[%emt 0:00:35]} 6. Bg2 {[%emt 0:00:04]} dxc4 {[%emt 0:02:39]} 7. Ne5 {[%emt 0:02:17]} Nc6 {[%emt 0:02:19]} 8. Nxc6 {[%emt 0:06:13]} bxc6 {[%emt 0:00:11]} 9. O-O {[%emt 0:02:37]} Rb8 {[%emt 0:00:30]} 10. Bxc6 {[%emt 0:07:29]} Bb7 {[%emt 0:00:06]} 11. Bxb7 {[%emt 0:08:34]} Rxb7 {[%emt 0:00:13]} 12. b3 {[%emt 0:01:41]} cxb3 {[%emt 0:02:08]} 13. axb3 {[%emt 0:00:04]} Bb4 {[%emt 0:00:16]} 14. Bb2 {[%emt 0:02:02]} Qb8 {[%emt 0:10:09]} 15. Na4 {[%emt 0:00:57]} Rd8 {[%emt 0:02:50]} 16. Ba3 {[%emt 0:09:22]} e5 {[%emt 0:05:39]} 17. Qc2 {[%emt 0:03:30]} exd4 {[%emt 0:05:19]} 18. Bxb4 {[%emt 0:02:26]} Rxb4 {[%emt 0:00:02]} 19. Nc5 {[%emt 0:00:15]} Rb6 {[%emt 0:17:55]} 20. Na6 {[%emt 0:01:46]} Qb7 {[%emt 0:00:15]} 21. Qxc7 {[%emt 0:00:23]} Re8 {[%emt 0:01:54]} 22. Qxb7 {[%emt 0:03:43]} Rxb7 {[%emt 0:00:08]} 23. Rfd1 {[%emt 0:00:32]} Rd7 {[%emt 0:05:47]} 24. Nc5 {[%emt 0:01:59]} Rd5 {[%emt 0:00:37]} 25. Nd3 {[%emt 0:03:44]} Re7 {[%emt 0:03:40]} 26. Nf4 {[%emt 0:03:08]} Rdd7 {[%emt 0:01:34]} 27. h4 {[%emt 0:02:42]} 1/2-1/2

[Event "EYCC Open-U12 2019"]
[Site "Bratislava"]
[Date "2019.08.09"]
[Round "8.15"]
[White "Macias Pino, Diego"]
[Black "Costa, Leonardo"]
[Result "1-0"]
[ECO "C26"]
[WhiteElo "2150"]
[BlackElo "2002"]
[Annotator "NA"]
[PlyCount "115"]
[EventDate "2019.08.02"]
[EventType "swiss"]
[EventCountry "SVK"]
[SourceTitle "playchess.com"]
[Source "ChessBase"]
[SourceQuality "1"]
[TimeControl "40/5400+30:1800+30"]

1. e4 {[%emt 0:00:00]} e5 {[%emt 0:00:00]} 2. Nc3 {[%emt 0:00:00]} Nf6 {[%emt 0:03:52]} 3. Bc4 {[%emt 0:01:01]} Bc5 {[%emt 0:05:31]} 4. f4 {[%emt 0:00:43]} d6 {[%emt 0:09:50]} 5. Nf3 {[%emt 0:00:17]} Nc6 {[%emt 0:00:33]} 6. d3 {[%emt 0:00:18]} a6 {[%emt 0:03:37]} 7. Nd5 {[%emt 0:01:36]} Nxd5 {[%emt 0:05:13]} 8. Bxd5 {[%emt 0:00:36]} Qf6 {[%emt 0:05:59]} 9. f5 {[%emt 0:12:15]} h6 {[%emt 0:05:21]} 10. c3 {[%emt 0:02:12]} Bd7 {[%emt 0:06:39]} 11. g4 {[%emt 0:15:51]} Qe7 {[%emt 0:12:03]} 12. b4 {[%emt 0:04:37]} Bb6 {[%emt 0:00:50]} 13. Qb3 {[%emt 0:00:14]} g6 {[%emt 0:06:43]} 14. Bd2 {[%emt 0:09:48]} Rh7 {[%emt 0:06:09]} 15. O-O-O {[%emt 0:13:35]} O-O-O {[%emt 0:00:16]} 16. Rdf1 {[%emt 0:01:16]} gxf5 {[%emt 0:08:15]} 17. exf5 {[%emt 0:02:11]} f6 {[%emt 0:02:30]} 18. Nh4 {[%emt 0:02:23]} Qg7 {[%emt 0:00:09]} 19. h3 {[%emt 0:06:39]} h5 {[%emt 0:02:43]} 20. g5 {[%emt 0:01:00]} fxg5 {[%emt 0:00:51]} 21. f6 {[%emt 0:00:13]} Qh6 {[%emt 0:00:33]} 22. Nf3 {[%emt 0:00:37]} Qxf6 {[%emt 0:02:34]} 23. Nxg5 {[%emt 0:00:46]} Qe7 {[%emt 0:00:08]} 24. Nxh7 {[%emt 0:01:00]} Qxh7 {[%emt 0:00:07]} 25. Be4 {[%emt 0:00:24]} Qg8 {[%emt 0:03:19]} 26. Qxg8 {[%emt 0:01:13]} Rxg8 {[%emt 0:00:05]} 27. Bf5 {[%emt 0:00:09]} Ne7 {[%emt 0:01:01]} 28. Bxd7+ {[%emt 0:00:33]} Kxd7 {[%emt 0:00:04]} 29. Rf7 {[%emt 0:00:10]} Rg3 {[%emt 0:06:28]} 30. Rh7 {[%emt 0:08:47]} Rxd3 {[%emt 0:00:27]} 31. Rxh5 {[%emt 0:04:01]} Rf3 {[%emt 0:00:46]} 32. Re1 {[%emt 0:02:11]} Ke6 {[%emt 0:00:40]} 33. Kc2 {[%emt 0:01:45]} Ng6 {[%emt 0:01:03]} 34. Re2 {[%emt 0:01:28]} Rg3 {[%emt 0:00:49]} 35. Rg5 {[%emt 0:01:39]} Rxg5 {[%emt 0:00:26]} 36. Bxg5 {[%emt 0:00:01]} Kf5 {[%emt 0:00:13]} 37. h4 {[%emt 0:01:56]} Kg4 {[%emt 0:01:54]} 38. Rh2 {[%emt 0:01:13]} Ba7 {[%emt 0:00:37]} 39. Bd8 {[%emt 0:01:00]} c6 {[%emt 0:00:19]} 40. h5 {[%emt 0:00:00]} Nf8 {[%emt 0:00:00]} 41. Be7 {[%emt 0:04:50]} Nh7 {[%emt 0:01:01]} 42. Bxd6 {[%emt 0:02:06]} e4 {[%emt 0:00:08]} 43. Kd2 {[%emt 0:08:31]} Kf3 {[%emt 0:02:49]} 44. Rh3+ {[%emt 0:00:35]} Kg4 {[%emt 0:00:24]} 45. Rh1 {[%emt 0:00:18]} Bb6 {[%emt 0:02:15]} 46. Ke2 {[%emt 0:00:47]} a5 {[%emt 0:00:27]} 47. Be7 {[%emt 0:03:33]} axb4 {[%emt 0:00:59]} 48. cxb4 {[%emt 0:00:44]} Bd4 {[%emt 0:03:22]} 49. h6 {[%emt 0:01:50]} Kf5 {[%emt 0:01:17]} 50. Rf1+ {[%emt 0:01:56]} Kg6 {[%emt 0:01:12]} 51. Rf4 {[%emt 0:00:41]} Kxh6 {[%emt 0:03:08]} 52. Rxe4 {[%emt 0:00:16]} Bb2 {[%emt 0:00:19]} 53. Bc5 {[%emt 0:00:48]} Bf6 {[%emt 0:00:29]} 54. Re6 {[%emt 0:03:56]} Kg6 {[%emt 0:00:40]} 55. Rd6 {[%emt 0:00:11]} Kf5 {[%emt 0:01:36]} 56. Rd7 {[%emt 0:00:08]} Ng5 {[%emt 0:00:14]} 57. Rxb7 {[%emt 0:00:10]} Ne6 {[%emt 0:00:07]} 58. Rb6 {[%emt 0:01:04]} 1-0

[Event "EYCC Open-U12 2019"]
[Site "Bratislava"]
[Date "2019.08.09"]
[Round "8.16"]
[White "Labruyere, Roger"]
[Black "Ristic, Luka"]
[Result "0-1"]
[ECO "B06"]
[WhiteElo "1897"]
[BlackElo "2113"]
[Annotator "NA"]
[PlyCount "64"]
[EventDate "2019.08.02"]
[EventType "swiss"]
[EventCountry "SVK"]
[SourceTitle "playchess.com"]
[Source "ChessBase"]
[SourceQuality "1"]
[TimeControl "40/5400+30:1800+30"]

1. e4 g6 {[%emt 0:00:00]} 2. d4 {[%emt 0:00:00]} Bg7 {[%emt 0:00:36]} 3. Nc3 {[%emt 0:00:00]} c6 {[%emt 0:00:00]} 4. f4 {[%emt 0:00:16]} d5 {[%emt 0:00:00]} 5. e5 {[%emt 0:00:09]} Nh6 {[%emt 0:00:37]} 6. h3 {[%emt 0:00:54]} Nf5 {[%emt 0:00:59]} 7. g4 {[%emt 0:05:28]} Ng3 {[%emt 0:00:34]} 8. Rh2 {[%emt 0:00:05]} Nxf1 {[%emt 0:00:14]} 9. Kxf1 {[%emt 0:00:06]} h5 {[%emt 0:00:24]} 10. Rg2 {[%emt 0:02:51]} hxg4 {[%emt 0:03:30]} 11. hxg4 {[%emt 0:00:10]} e6 {[%emt 0:00:28]} 12. Be3 {[%emt 0:00:23]} b6 {[%emt 0:00:23]} 13. Qf3 {[%emt 0:00:40]} Qd7 {[%emt 0:02:29]} 14. Ke1 {[%emt 0:03:43]} Bb7 {[%emt 0:02:52]} 15. Rd1 {[%emt 0:01:26]} c5 {[%emt 0:00:54]} 16. dxc5 {[%emt 0:04:12]} Qc6 {[%emt 0:05:30]} 17. Rgd2 {[%emt 0:25:09]} bxc5 {[%emt 0:00:35]} 18. Nxd5 {[%emt 0:08:16]} exd5 {[%emt 0:02:55]} 19. Rxd5 {[%emt 0:00:35]} Nd7 {[%emt 0:02:19]} 20. Qf2 {[%emt 0:03:46]} O-O-O {[%emt 0:07:18]} 21. Rd6 {[%emt 0:09:51]} Qg2 {[%emt 0:02:51]} 22. Bxc5 {[%emt 0:00:57]} Bf8 {[%emt 0:02:32]} 23. R6d2 {[%emt 0:02:54]} Qe4+ {[%emt 0:03:31]} 24. Be3 {[%emt 0:01:51]} Bb4 {[%emt 0:00:22]} 25. c3 {[%emt 0:01:04]} Bc5 {[%emt 0:00:40]} 26. Re2 {[%emt 0:01:26]} Ba6 {[%emt 0:01:17]} 27. Bxc5 {[%emt 0:02:52]} Bxe2 {[%emt 0:02:03]} 28. Rd4 {[%emt 0:01:28]} Qb1+ {[%emt 0:01:45]} 29. Kxe2 {[%emt 0:00:31]} Qxb2+ {[%emt 0:00:04]} 30. Rd2 {[%emt 0:00:35]} Qb5+ {[%emt 0:00:07]} 31. Ke1 {[%emt 0:00:58]} Nxc5 {[%emt 0:00:12]} 32. Rb2 {[%emt 0:01:11]} Nd3+ {[%emt 0:00:07]} 0-1